bitfinex/quotes_ETHUSD_20250518
["timestamp","ask_amount","ask_price","bid_price","bid_amount"]
[1747595405079,4.05728891,2464.7,2464.6,17.523]
[1747595405287,4.05728891,2464.7,2464.6,26.054]
[1747595407037,0.8001,2465.1,2464.6,26.054]
[1747595407038,0.8001,2465.1,2464.6,29.4246]
[1747595407189,4.05728891,2464.7,2464.6,28.8868885]
[1747595408723,4.05728891,2464.7,2464.6,26.2814885]
[1747595408919,4.85676972,2465.1,2464.6,26.2814885]
[1747595409121,4.0572009,2464.8,2464.6,26.2814885]
[1747595409424,4.05712656,2464.8,2464.6,26.2814885]
[1747595409624,4.05712656,2464.8,2464.7,0.2274885]
[1747595409919,4.05712656,2464.8,2464.7,2.85563735]
[1747595410122,4.05666115,2465.1,2464.7,2.85563735]
[1747595410323,4.05704338,2464.9,2464.8,0.2274885]
[1747595411023,4.05678265,2465.1,2464.8,1.0203885]
[1747595411322,4.05679513,2465.0,2464.9,0.36485373]
[1747595411509,4.05679513,2465.0,2464.9,0.59234223]
[1747595412288,4.05679513,2465.0,2464.9,0.2274885]
[1747595412689,4.09733431,2465.0,2464.9,8.53]
[1747595412889,4.05679513,2465.0,2464.9,8.53]
[1747595415189,4.05679513,2465.0,2464.7,6.5624]
[1747595415190,4.05712431,2464.8,2464.7,5.75]
[1747595415392,4.05712431,2464.8,2464.7,14.261]
[1747595415928,4.05712431,2464.8,2464.7,8.511]
[1747595418623,12.05712431,2464.8,2464.7,8.511]
[1747595419564,12.05712431,2464.8,2464.6,17.523]
[1747595419565,4.05728891,2464.7,2464.6,17.523]
[1747595419737,4.05728891,2464.7,2464.6,26.035]
[1747595424207,4.0570056,2464.9,2464.6,26.26253956]
[1747595424407,4.81669899,2465.2,2464.6,26.26253956]
[1747595424618,4.05726883,2464.8,2464.6,26.26253956]
[1747595424835,4.05726883,2464.8,2464.7,2.62625396]
[1747595425232,4.05726883,2464.8,2464.7,2.85379352]
[1747595426840,4.05726883,2464.8,2464.7,0.22753956]
[1747595427409,4.05726883,2464.8,2464.7,8.512]
[1747595427605,4.05728891,2464.7,2464.6,17.523]
[1747595427813,4.05728891,2464.7,2464.6,26.035]
[1747595431840,4.05726883,2464.8,2464.6,26.7965]
[1747595432146,4.05688527,2465.0,2464.6,26.7965]
[1747595432340,4.05722009,2464.8,2464.6,26.7965]
[1747595432543,4.05722009,2464.8,2464.7,0.22752034]
[1747595433554,4.05728891,2464.7,2464.6,26.035]
[1747595434236,4.056466,2465.2,2464.6,26.2625319]
[1747595434449,4.05723878,2464.8,2464.6,30.14384145]
[1747595434752,4.05728891,2464.7,2464.6,30.14384145]
[1747595434925,4.05716163,2464.8,2464.6,29.91630955]
[1747595435130,4.05712431,2464.8,2464.7,0.753]
[1747595435352,4.05705249,2464.9,2464.7,4.63430955]
[1747595435535,4.05705249,2464.9,2464.7,4.86182132]
[1747595435938,4.05705249,2464.9,2464.7,4.63430955]
[1747595436146,4.05712431,2464.8,2464.7,4.63430955]
[1747595436322,4.05712431,2464.8,2464.7,3.88130955]
[1747595437556,4.05728891,2464.7,2464.6,17.523]
[1747595437754,4.05728891,2464.7,2464.6,26.034]
[1747595440666,4.83428891,2464.7,2464.6,17.523]
[1747595440866,4.83428891,2464.7,2464.6,26.035]
[1747595441670,4.87482809,2464.7,2464.6,26.035]
[1747595441850,4.83428891,2464.7,2464.6,26.035]
[1747595442550,4.05728891,2464.7,2464.6,26.035]
[1747595443339,12.05728891,2464.7,2464.6,26.035]
[1747595443674,12.88498891,2464.7,2464.6,26.035]
[1747595444464,4.05844155,2464.0,2463.9,17.519]
[1747595444766,4.05844155,2464.0,2463.9,26.01]
[1747595445157,4.09898073,2464.0,2463.9,26.01]
[1747595445465,4.05844155,2464.0,2463.9,26.01]
[1747595445663,0.8312,2464.5,2464.0,0.8315]
[1747595445837,4.05818882,2464.2,2464.1,2.68415]
[1747595446263,4.05818882,2464.2,2464.1,2.91179513]
[1747595446633,4.05818882,2464.2,2464.1,2.91176993]
[1747595447171,4.05737453,2464.7,2464.2,4.88960937]
[1747595447358,4.05726134,2464.8,2464.3,7.10513793]
[1747595447670,4.05752778,2464.6,2464.4,17.20858136]
[1747595447859,4.05761817,2464.5,2464.4,17.20858136]
[1747595448259,4.05761817,2464.5,2464.4,17.20857934]
[1747595448558,4.05757396,2464.6,2464.4,17.20857934]
[1747595448750,4.05757396,2464.6,2464.5,2.43137173]
[1747595449470,4.05757396,2464.6,2464.5,2.65898127]
[1747595451168,4.05728526,2464.8,2464.5,2.65898127]
[1747595451470,4.05679513,2465.0,2464.5,2.65898127]
[1747595451673,4.05745354,2464.6,2464.5,2.65898127]
[1747595451861,4.05745354,2464.6,2464.5,0.22760954]
[1747595454470,4.88783659,2465.1,2464.5,0.22760954]
[1747595454673,4.05745354,2464.6,2464.4,22.731]
[1747595455275,4.05761817,2464.5,2464.4,22.731]
[1747595455936,4.05761817,2464.5,2464.4,14.242]
[1747595456375,4.05761817,2464.5,2464.4,14.4687393]
[1747595457402,4.05811216,2464.2,2464.1,0.48572002]
[1747595457544,4.09865134,2464.2,2464.1,0.48572002]
[1747595457855,4.05811216,2464.2,2464.1,0.48572002]
[1747595458591,4.05811216,2464.2,2463.9,17.519]
[1747595458592,4.05844155,2464.0,2463.9,17.519]
[1747595458885,4.88198073,2464.0,2463.9,17.519]
[1747595459038,4.05943005,2463.4,2463.3,8.97772002]
[1747595460460,12.91296923,2463.4,2463.3,8.97772002]
[1747595460644,12.87243005,2463.4,2463.3,8.97772002]
[1747595461194,12.87243005,2463.4,2463.3,8.492]
[1747595461405,4.06061876,2462.7,2462.5,23.269]
[1747595461564,4.06061876,2462.7,2462.6,8.493]
[1747595463052,12.06061876,2462.7,2462.6,8.493]
[1747595463553,4.06061876,2462.7,2462.6,8.493]
[1747595470296,4.84331876,2462.7,2462.6,8.493]
[1747595470494,4.88385794,2462.7,2462.6,8.493]
[1747595470699,4.84331876,2462.7,2462.6,8.493]
[1747595470895,12.84331876,2462.7,2462.6,8.493]
[1747595471288,4.0619034,2461.9,2461.8,23.28]
[1747595471471,4.0619034,2461.9,2461.8,26.027]
[1747595472495,4.06182854,2462.0,2461.8,26.027]
[1747595472719,4.06124355,2462.3,2461.8,27.04820989]
[1747595473008,4.06081127,2462.6,2461.9,4.92545311]
[1747595473212,4.06054773,2462.8,2462.2,0.823]
[1747595473374,4.84199653,2463.5,2462.4,0.823]
[1747595473574,4.06001636,2463.1,2462.6,4.88363791]
[1747595473771,4.05948769,2463.4,2462.7,21.59248667]
[1747595473984,4.06041903,2462.8,2462.7,17.532]
[1747595474183,4.06041903,2462.8,2462.7,26.007]
[1747595477628,4.10095821,2462.8,2462.7,26.007]
[1747595477919,4.06041903,2462.8,2462.7,26.007]
[1747595480987,12.10095821,2462.8,2462.7,26.007]
[1747595481189,12.82281903,2462.8,2462.7,8.475]
[1747595481994,12.06041903,2462.8,2462.7,8.475]
[1747595482900,4.06041903,2462.8,2462.7,8.475]
[1747595484124,4.10095821,2462.8,2462.7,8.475]
[1747595484428,4.06041903,2462.8,2462.7,8.475]
[1747595493360,4.06041903,2462.8,2462.7,10.1022]
[1747595493849,0.7735,2463.6,2462.7,10.1022]
[1747595494013,4.06003678,2463.1,2462.8,0.38880738]
[1747595494214,4.06003678,2463.1,2462.8,6.13880738]
[1747595494411,8.0,2463.5,2462.9,1.62410074]
[1747595494617,4.06001455,2463.1,2462.9,1.62410074]
[1747595494831,4.86235355,2463.9,2463.0,24.07579819]
[1747595495028,4.05910669,2463.6,2463.2,0.7522]
[1747595495246,4.05910669,2463.6,2463.3,8.475]
[1747595495442,4.05910669,2463.6,2463.4,0.92272]
[1747595495642,4.05959485,2463.3,2463.2,0.7522]
[1747595495846,4.05959485,2463.3,2463.2,9.2272]
[1747595496470,4.05945809,2463.4,2463.0,17.533]
[1747595496471,4.05992448,2463.1,2463.0,17.533]
[1747595496631,4.05992448,2463.1,2463.0,26.008]
[1747595506775,4.10046366,2463.1,2463.0,26.008]
[1747595507088,4.05992448,2463.1,2463.0,26.008]
[1747595508680,4.05992448,2463.1,2463.0,8.475]
[1747595511088,12.10046366,2463.1,2463.0,8.475]
[1747595511290,12.05992448,2463.1,2463.0,8.475]
[1747595511489,4.0609137,2462.5,2462.4,8.451]
[1747595511691,4.10145288,2462.5,2462.4,8.451]
[1747595511890,4.06140849,2462.2,2462.1,0.48572002]
[1747595513801,4.06008932,2463.0,2462.2,0.7887]
[1747595513954,4.06100329,2462.5,2462.2,6.5387]
[1747595514154,4.06044736,2462.8,2462.3,0.702442]
[1747595515312,0.8222,2463.1,2462.3,0.702442]
[1747595515509,4.06008932,2463.0,2462.3,6.452442]
[1747595515661,4.06107862,2462.4,2462.3,6.452442]
[1747595516309,4.06107862,2462.4,2462.3,5.75]
[1747595516663,4.06107862,2462.4,2462.3,14.202]
[1747595517709,4.06094641,2462.5,2462.3,14.9932]
[1747595518810,4.05891953,2463.8,2462.4,4.85227862]
[1747595518966,0.8027,2463.7,2462.7,0.7899]
[1747595519169,8.0,2463.5,2462.8,25.985]
[1747595519364,4.06001944,2463.1,2462.8,25.985]
[1747595519612,4.06014585,2463.0,2462.8,25.985]
[1747595520255,4.05999482,2463.1,2462.8,25.985]
[1747595520625,4.06014649,2463.0,2462.8,25.985]
[1747595520936,4.06014649,2463.0,2462.8,29.50649]
[1747595521104,4.06025417,2462.9,2462.8,29.50649]
[1747595521312,4.05978475,2463.2,2462.8,29.50649]
[1747595521510,4.05994705,2463.1,2462.8,29.50649]
[1747595522624,4.06025417,2462.9,2462.8,25.985]
[1747595527575,12.06025417,2462.9,2462.8,8.452]
[1747595527780,12.84845417,2462.9,2462.8,8.452]
[1747595528927,4.06025417,2462.9,2462.8,8.452]
[1747595530892,4.06025417,2462.9,2462.4,8.452]
[1747595530893,4.0609137,2462.5,2462.4,8.452]
[1747595531740,4.8491137,2462.5,2462.4,8.452]
[1747595533179,12.8491137,2462.5,2462.4,8.452]
[1747595539921,12.8491137,2462.5,2461.6,5.75]
[1747595539922,4.06223341,2461.7,2461.6,5.75]
[1747595540092,4.06209998,2461.8,2461.7,8.429]
[1747595542812,4.06272852,2461.4,2461.3,18.02072002]
[1747595543010,4.06272852,2461.4,2461.3,26.45072002]
[1747595543407,4.06272852,2461.4,2461.3,25.965]
[1747595545400,4.06272852,2461.4,2461.3,27.7844276]
[1747595546141,4.06272852,2461.4,2461.3,25.965]
[1747595546928,4.06272852,2461.4,2461.3,25.915]
[1747595549332,4.1032677,2461.4,2461.3,25.915]
[1747595549531,4.83992852,2461.4,2461.3,25.915]
[1747595549908,4.06272852,2461.4,2461.3,25.915]
[1747595551648,4.06272852,2461.4,2461.3,25.917]
[1747595556941,4.06272852,2461.4,2461.3,25.867]
[1747595559672,4.06272852,2461.4,2461.3,17.435]
[1747595559874,4.06272852,2461.4,2461.3,25.867]
[1747595562278,4.06272852,2461.4,2461.3,17.435]
[1747595562466,4.06272852,2461.4,2461.3,25.868]
[1747595564285,4.40141501,2461.4,2461.3,25.868]
[1747595564464,4.83582852,2461.4,2461.3,25.868]
[1747595564784,4.83582852,2461.4,2461.3,8.433]
[1747595565560,4.8763677,2461.4,2461.3,8.433]
[1747595566488,7.10396621,2461.4,2461.3,8.433]
[1747595568490,7.06342703,2461.4,2461.3,8.433]
[1747595569190,15.06342703,2461.4,2461.3,8.433]
[1747595569356,12.06355398,2460.9,2460.8,25.951]
[1747595569557,14.29115249,2460.9,2460.8,25.951]
[1747595570008,4.06454497,2460.3,2460.2,0.48572002]
[1747595570193,4.06454497,2460.3,2460.2,8.89372002]
[1747595570803,4.06454497,2460.3,2460.2,8.408]
[1747595572304,8.0,2460.9,2460.3,0.8258]
[1747595572505,4.06397056,2460.7,2460.3,0.8258]
[1747595572708,4.0640501,2460.6,2460.3,0.8258]
[1747595573104,4.0640501,2460.6,2460.4,0.22773487]
[1747595573307,4.0640501,2460.6,2460.5,0.8258]
[1747595574708,4.06404941,2460.6,2460.5,1.05353904]
[1747595577911,4.06378525,2460.8,2460.5,1.05353904]
[1747595577912,4.06404608,2460.7,2460.5,1.05353904]
[1747595578106,4.06404941,2460.6,2460.5,1.05353904]
[1747595578877,4.06404941,2460.6,2460.5,0.8258]
[1747595583622,12.84889475,2461.3,2460.5,2.32328]
[1747595583835,4.06382452,2460.8,2460.5,2.32328]
[1747595584109,4.06364568,2460.9,2460.7,0.7527]
[1747595584316,11.05559851,2461.5,2460.8,8.409]
[1747595584317,4.06341992,2461.0,2460.8,8.409]
[1747595584482,4.06355398,2460.9,2460.8,9.92294664]
[1747595584983,4.06355398,2460.9,2460.8,10.15071307]
[1747595585493,4.06355398,2460.9,2460.8,0.22776643]
[1747595585700,4.06355398,2460.9,2460.8,8.63676643]
[1747595586032,4.06355398,2460.9,2460.8,8.409]
[1747595588617,6.33169167,2460.9,2460.8,8.409]
[1747595588827,6.33169167,2460.9,2460.7,5.75]
[1747595588828,4.06371911,2460.8,2460.7,5.75]
[1747595589030,4.89171911,2460.8,2460.7,8.409]
[1747595589231,12.89171911,2460.8,2460.7,8.409]
[1747595589547,4.06471018,2460.2,2460.0,17.544]
[1747595589719,4.06504065,2460.0,2459.9,0.48572002]
[1747595590020,6.29263916,2460.0,2459.9,0.48572002]
[1747595590180,7.12063916,2460.0,2459.9,0.48572002]
[1747595590580,4.06504065,2460.0,2459.9,0.48572002]
[1747595590821,4.0652059,2459.9,2459.8,8.409]
[1747595591733,4.06586704,2459.5,2459.4,0.7527]
[1747595592015,4.06586704,2459.5,2459.3,17.546]
[1747595592016,4.06603236,2459.4,2459.3,25.934]
[1747595592220,4.06603236,2459.4,2459.3,25.956]
[1747595592545,4.06603236,2459.4,2459.3,17.546]
[1747595592820,4.06603236,2459.4,2459.3,25.956]
[1747595592987,4.0658506,2459.6,2459.3,29.1266]
[1747595593186,4.0658506,2459.6,2459.4,0.7527]
[1747595593596,4.06558547,2459.7,2459.4,0.7527]
[1747595593799,4.06558547,2459.7,2459.5,8.386]
[1747595594000,4.06471018,2460.2,2459.6,6.5352]
[1747595594198,0.7538,2460.5,2459.7,5.75]
[1747595594405,4.06486126,2460.2,2459.8,8.411]
[1747595594607,4.06486126,2460.2,2459.9,0.7852]
[1747595594907,4.06487541,2460.1,2460.0,0.91962]
[1747595595101,4.06504065,2460.0,2459.9,0.7852]
[1747595595996,8.0,2460.7,2459.9,0.7852]
[1747595596332,4.06425708,2460.5,2460.0,9.81502418]
[1747595596527,4.064623,2460.3,2460.1,0.7852]
[1747595596727,4.06374985,2460.8,2460.2,17.549]
[1747595596936,4.0644648,2460.4,2460.3,8.385]
[1747595597933,4.06428696,2460.5,2460.3,8.385]
[1747595598229,4.06437977,2460.4,2460.3,8.385]
[1747595600928,4.06413604,2460.6,2460.3,8.385]
[1747595601840,4.06421876,2460.5,2460.3,14.135]
[1747595602135,4.06413706,2460.6,2460.3,18.01630955]
[1747595602747,4.06388633,2460.7,2460.4,0.7992]
[1747595602958,4.06406457,2460.6,2460.4,0.7992]
[1747595603959,4.06415455,2460.6,2460.4,0.7992]
[1747595604469,4.06437977,2460.4,2460.3,5.75]
[1747595604611,4.06437977,2460.4,2460.3,14.135]
[1747595606752,4.06437977,2460.4,2460.3,14.134]
[1747595606955,4.85097977,2460.4,2460.3,14.134]
[1747595607856,4.06437977,2460.4,2460.2,17.549]
[1747595608010,4.06454497,2460.3,2460.2,17.549]
[1747595608218,4.06454497,2460.3,2460.2,25.933]
[1747595608510,4.0642816,2460.5,2460.2,25.933]
[1747595608861,4.06441696,2460.4,2460.2,25.933]
[1747595609354,4.06454497,2460.3,2460.2,25.933]
[1747595609764,4.06454497,2460.3,2460.2,17.549]
[1747595610043,4.06454497,2460.3,2460.2,25.934]
[1747595610624,4.06454497,2460.3,2460.2,17.549]
[1747595610823,4.06454497,2460.3,2460.2,25.934]
[1747595611455,4.06454497,2460.3,2460.2,17.549]
[1747595611662,4.06454497,2460.3,2460.2,25.934]
[1747595612522,4.06445394,2460.4,2460.2,25.934]
[1747595612854,4.06429905,2460.5,2460.2,25.934]
[1747595613031,4.06429905,2460.5,2460.2,29.81530955]
[1747595613638,4.06440776,2460.4,2460.2,29.81530955]
[1747595614047,4.06454497,2460.3,2460.2,25.934]
[1747595614421,4.06403564,2460.7,2460.2,25.934]
[1747595614629,4.06352379,2461.0,2460.2,26.94694043]
[1747595615081,4.06352379,2461.0,2460.3,0.38833606]
[1747595615325,4.06404897,2460.7,2460.3,0.38833606]
[1747595615547,4.06410036,2460.6,2460.3,4.26964561]
[1747595615852,4.06410036,2460.6,2460.4,0.22754043]
[1747595616034,4.06421459,2460.5,2460.4,8.59654043]
[1747595616358,4.06421459,2460.5,2460.4,16.98154043]
[1747595616553,4.06437977,2460.4,2460.3,5.75]
[1747595616761,4.06437977,2460.4,2460.3,16.754]
[1747595617256,4.0638855,2460.7,2460.3,18.80436514]
[1747595618059,4.0638855,2460.7,2460.4,0.2275584]
[1747595618855,4.0638855,2460.7,2460.3,18.57680674]
[1747595620076,4.0638855,2460.7,2460.3,24.32680674]
[1747595620758,4.06258259,2461.5,2460.3,24.32680674]
[1747595620759,0.769,2461.6,2460.6,4.06393135]
[1747595620963,4.06316702,2461.2,2460.7,4.8607804]
[1747595621255,4.06316702,2461.2,2460.8,16.748]
[1747595621461,4.06316702,2461.2,2460.8,22.498]
[1747595622663,4.06314987,2461.2,2460.8,22.498]
[1747595622846,4.06324284,2461.1,2460.8,22.498]
[1747595623035,4.06324284,2461.1,2460.9,2.32949]
[1747595623447,4.06324284,2461.1,2460.9,10.69149]
[1747595623652,4.06338886,2461.0,2460.9,10.69149]
[1747595623858,4.06338886,2461.0,2460.9,8.362]
[1747595625149,4.06331238,2461.1,2460.9,8.362]
[1747595625358,4.06298643,2461.3,2460.9,8.362]
[1747595625547,4.06306042,2461.2,2460.9,8.362]
[1747595625956,4.06322689,2461.1,2460.9,14.112]
[1747595626277,4.06315199,2461.2,2461.0,2.2496]
[1747595626481,4.06315199,2461.2,2461.1,17.545]
[1747595626685,0.769,2461.6,2461.1,17.545]
[1747595626977,4.06268042,2461.5,2461.2,0.7689]
[1747595627281,4.06232367,2461.7,2461.3,10.76539]
[1747595627481,4.0620153,2461.9,2461.4,12.42072005]
[1747595627683,0.7951,2462.3,2461.5,6.5189]
[1747595627975,4.06159606,2462.1,2461.7,0.7689]
[1747595628177,6.10248309,2462.6,2461.9,0.7689]
[1747595628382,4.06100735,2462.5,2462.1,0.7689]
[1747595628551,4.06110128,2462.4,2462.1,6.5189]
[1747595629863,4.06140849,2462.2,2462.1,5.75]
[1747595630386,4.06140849,2462.2,2462.1,14.108]
[1747595630546,4.06140849,2462.2,2462.1,17.98930955]
[1747595631372,4.06140849,2462.2,2462.1,14.108]
[1747595632098,4.06140849,2462.2,2462.1,8.358]
[1747595634585,4.06157345,2462.1,2462.0,17.545]
[1747595634762,4.06157345,2462.1,2462.0,34.252]
[1747595636199,4.06157345,2462.1,2462.0,25.902]
[1747595636689,4.06157345,2462.1,2462.0,25.901]
[1747595639677,4.06157345,2462.1,2462.0,17.545]
[1747595639879,4.06157345,2462.1,2462.0,25.901]
[1747595640300,0.8216,2462.5,2462.0,25.901]
[1747595640459,4.06157345,2462.1,2462.0,29.51096195]
[1747595641170,4.06157345,2462.1,2462.0,21.15496195]
[1747595641417,4.06157345,2462.1,2462.0,25.901]
[1747595645011,4.06157345,2462.1,2462.0,25.9]
[1747595645814,0.8216,2462.6,2462.0,25.9]
[1747595646112,4.06115866,2462.4,2462.1,6.5526]
[1747595646297,0.7618,2463.1,2462.3,0.8026]
[1747595646492,0.7618,2463.1,2462.2,9.03586963]
[1747595646493,4.05993554,2463.1,2462.5,0.8026]
[1747595646800,4.06058391,2462.7,2462.6,8.355]
[1747595647311,4.06024678,2463.0,2462.7,0.8026]
[1747595647677,4.06011475,2463.0,2462.7,0.8026]
[1747595647875,4.06011475,2463.0,2462.8,1.49076]
[1747595648115,4.06011475,2463.0,2462.9,25.873]
[1747595648483,4.05999524,2463.1,2462.9,25.873]
[1747595649216,4.05950832,2463.4,2463.0,0.8172]
[1747595649514,7.07790256,2464.1,2463.2,0.8172]
[1747595649718,4.05918579,2463.6,2463.3,5.75]
[1747595649915,4.05918579,2463.6,2463.4,14.086]
[1747595650217,4.05901566,2463.7,2463.4,14.086]
[1747595650403,4.0591005,2463.6,2463.5,1.4086]
[1747595652387,4.0591005,2463.6,2463.5,18.0946]
[1747595653017,4.0591005,2463.6,2463.5,1.4086]
[1747595653282,4.05926527,2463.5,2463.4,5.75]
[1747595653485,4.05926527,2463.5,2463.4,22.434]
[1747595656241,4.05894874,2463.7,2463.5,0.7565]
[1747595657528,4.05808176,2464.3,2463.5,0.7565]
[1747595657700,0.7967,2464.4,2463.6,5.75]
[1747595657905,4.05868481,2463.9,2463.7,0.65065]
[1747595658128,4.05868481,2463.9,2463.8,17.529]
[1747595658328,4.05854705,2464.0,2463.8,18.2855]
[1747595658496,4.05854705,2464.0,2463.9,16.653]
[1747595659530,4.05811349,2464.2,2463.9,16.653]
[1747595659531,0.8118,2464.8,2463.9,22.403]
[1747595659693,4.05799689,2464.3,2464.0,10.39040955]
[1747595659892,4.05811216,2464.2,2464.1,5.75]
[1747595660132,4.05804906,2464.3,2464.1,5.75]
[1747595660327,4.05804906,2464.3,2464.2,16.65]
[1747595660490,0.8118,2464.8,2464.2,5.75]
[1747595660698,4.05665222,2465.1,2464.4,0.7591]
[1747595660913,4.05747265,2464.6,2464.4,0.7591]
[1747595661121,4.05747265,2464.6,2464.4,6.5091]
[1747595661324,4.05761817,2464.5,2464.4,6.5091]
[1747595662026,4.05753641,2464.6,2464.4,6.5091]
[1747595662234,4.05753641,2464.6,2464.5,2.37331]
[1747595662797,4.05761817,2464.5,2464.4,5.75]
[1747595663010,4.05761817,2464.5,2464.4,22.394]
[1747595663629,4.05761817,2464.5,2464.4,5.75]
[1747595665199,4.05811216,2464.2,2464.1,5.75]
[1747595666126,4.05811216,2464.2,2464.1,14.074]
[1747595667900,4.05811216,2464.2,2464.1,8.324]
[1747595669534,4.0578218,2464.4,2464.1,9.1145]
[1747595670036,4.0578018,2464.4,2464.1,10.60095]
[1747595670247,4.05768222,2464.5,2464.1,10.60095]
[1747595670403,4.0575421,2464.6,2464.2,5.75]
[1747595670600,4.05678626,2465.1,2464.4,0.7905]
[1747595670803,0.7871,2465.3,2464.5,6.66045]
[1747595670804,4.05752844,2464.6,2464.5,6.66045]
[1747595673518,4.05752844,2464.6,2464.5,23.29445]
[1747595674643,4.05752844,2464.6,2464.5,23.29345]
[1747595674849,4.05731109,2464.7,2464.5,23.29345]
[1747595674850,4.05737621,2464.7,2464.5,23.29345]
[1747595675005,4.05700494,2464.9,2464.6,2.408395]
[1747595675207,4.05712431,2464.8,2464.7,17.52]
[1747595677145,4.05712431,2464.8,2464.7,23.27]
[1747595677449,0.7871,2465.3,2464.7,23.27]
[1747595677614,4.05704761,2464.9,2464.7,17.52]
[1747595677814,4.05704761,2464.9,2464.8,1.9928395]
[1747595682048,4.05712431,2464.8,2464.7,17.52]
[1747595682212,4.05712431,2464.8,2464.7,39.895]
[1747595683657,4.05712431,2464.8,2464.7,40.6661]
[1747595684149,4.05712431,2464.8,2464.7,39.893]
[1747595684352,4.05712431,2464.8,2464.7,23.27]
[1747595684512,4.05712431,2464.8,2464.7,39.892]
[1747595684984,4.05712431,2464.8,2464.7,23.27]
[1747595685272,4.80962431,2464.8,2464.7,31.591]
[1747595685615,4.80962431,2464.8,2464.7,17.52]
[1747595685616,13.1483108,2464.8,2464.7,17.52]
[1747595685820,12.80962431,2464.8,2464.7,25.841]
[1747595687348,12.80962431,2464.8,2464.7,17.52]
[1747595687671,15.03198307,2464.8,2464.7,25.841]
[1747595689880,12.80962431,2464.8,2464.7,25.841]
[1747595690075,15.03198307,2464.8,2464.7,25.841]
[1747595692377,15.03198307,2464.8,2464.7,17.52]
[1747595696077,15.03198307,2464.8,2464.7,25.818]
[1747595696288,4.05860627,2463.9,2463.8,14.042]
[1747595696462,4.05860627,2463.9,2463.8,34.11]
[1747595699378,4.05838298,2464.1,2463.8,34.11]
[1747595699697,4.05844155,2464.0,2463.9,3.48909]
[1747595700283,4.05860627,2463.9,2463.8,25.818]
[1747595700593,12.09914545,2463.9,2463.8,25.819]
[1747595700800,12.05860627,2463.9,2463.8,25.819]
[1747595700973,12.05860627,2463.9,2463.8,17.52]
[1747595701178,12.05860627,2463.9,2463.8,25.819]
[1747595705282,12.05860627,2463.9,2463.8,17.52]
[1747595705483,12.05860627,2463.9,2463.8,25.82]
[1747595706184,4.05852603,2464.0,2463.8,26.6489]
[1747595706430,4.05834827,2464.1,2463.8,34.9339]
[1747595706595,12.05848672,2464.0,2463.8,34.9339]
[1747595706797,4.05848672,2464.0,2463.9,3.49339]
[1747595707520,4.05848672,2464.0,2463.9,11.79339]
[1747595707754,8.0,2464.1,2463.9,11.79339]
[1747595707882,0.771,2464.6,2463.9,11.79339]
[1747595708088,4.05670393,2465.1,2464.1,0.8289]
[1747595708089,0.771,2464.8,2464.1,0.8289]
[1747595708425,12.05797891,2464.3,2464.2,0.65789]
[1747595708595,12.05797891,2464.3,2464.2,8.3]
[1747595709117,4.05827685,2464.1,2464.0,14.033]
[1747595709324,12.05819877,2464.2,2464.0,16.583]
[1747595709787,4.05844155,2464.0,2463.9,5.75]
[1747595710123,12.05844155,2464.0,2463.9,8.3]
[1747595710821,12.05860627,2463.9,2463.8,17.52]
[1747595710982,12.05860627,2463.9,2463.8,25.82]
[1747595711188,12.05860627,2463.9,2463.8,17.52]
[1747595711500,15.10026503,2463.9,2463.8,25.82]
[1747595713014,0.8193,2463.4,2462.7,0.48572002]
[1747595713319,4.06008932,2463.0,2462.9,17.522]
[1747595713507,12.06008932,2463.0,2462.9,25.822]
[1747595716606,4.06008932,2463.0,2462.9,29.1621]
[1747595717608,4.06008932,2463.0,2462.9,25.823]
[1747595718240,12.06008932,2463.0,2462.9,25.823]
[1747595718435,12.85828932,2463.0,2462.9,17.522]
[1747595718602,12.06008932,2463.0,2462.9,25.799]
[1747595719240,4.06001643,2463.1,2462.9,25.799]
[1747595719539,4.05936933,2463.5,2463.1,0.7579]
[1747595719741,4.05882145,2463.8,2463.1,0.7579]
[1747595719925,4.05911468,2463.6,2463.1,0.7579]
[1747595720241,4.85662989,2464.1,2463.3,0.7579]
[1747595720452,4.05936696,2463.5,2463.4,8.278]
[1747595720665,4.05936696,2463.5,2463.4,15.52926545]
[1747595721535,4.05936696,2463.5,2463.4,5.75]
[1747595721866,4.05936696,2463.5,2463.4,22.303]
[1747595722423,4.05936696,2463.5,2463.4,14.028]
[1747595723976,4.06008932,2463.0,2462.9,17.522]
[1747595724325,4.06008932,2463.0,2462.9,25.799]
[1747595725037,4.06008932,2463.0,2462.9,29.1368]
[1747595725239,4.06008932,2463.0,2462.9,28.3789]
[1747595726962,12.06008932,2463.0,2462.9,25.8]
[1747595727646,4.06008932,2463.0,2462.9,25.8]
[1747595728018,4.06008932,2463.0,2462.9,26.5579]
[1747595728224,4.05999117,2463.1,2462.9,26.5579]
[1747595728464,4.06003602,2463.1,2463.0,2.65579]
[1747595729261,4.06008932,2463.0,2462.9,26.5579]
[1747595729828,4.06008932,2463.0,2462.9,34.8269]
[1747595731474,4.05999243,2463.1,2462.9,34.8269]
[1747595731869,4.06008932,2463.0,2462.9,18.2799]
[1747595732053,4.06008932,2463.0,2462.9,34.8259]
[1747595732451,4.06008932,2463.0,2461.0,2.22558686]
[1747595732452,4.82499844,2461.6,2461.0,0.19922506]
[1747595732656,4.61305867,2461.2,2460.0,0.7974]
[1747595732882,17.90587922,2461.2,2459.7,3.23813348]
[1747595733178,4.06537116,2459.8,2459.7,3.23813348]
[1747595733382,12.06537116,2459.8,2459.7,0.33938391]
[1747595733850,23.06175557,2459.8,2459.7,0.33938391]
[1747595734172,23.61175557,2459.8,2459.7,0.33938391]
[1747595734575,27.88175557,2459.8,2459.7,0.33938391]
[1747595734742,29.07915368,2459.8,2459.7,0.33938391]
[1747595735073,29.38087694,2459.8,2459.7,0.33938391]
[1747595735484,12.61570174,2459.6,2459.5,6.34903889]
[1747595735659,14.95881896,2459.6,2459.5,6.34903889]
[1747595736273,12.06570174,2459.6,2459.5,6.34903889]
[1747595737247,14.65582117,2459.6,2459.5,6.34903889]
[1747595737781,12.06570174,2459.6,2459.5,6.34903889]
[1747595739869,12.06586704,2459.5,2459.4,8.285]